[Event "Live Chess"]
[Site "Chess.com"]
[Date "2024.06.01"]
[Round "-"]
[White "Stanbad1"]
[Black "chessfiction"]
[Result "0-1"]
[WhiteElo "2628"]
[BlackElo "2382"]
[TimeControl "300"]
[EndTime "14:38:31 PDT"]
[Termination "chessfiction won by resignation"]

1. d4 {[%clk 0:04:56]} 1... Nf6 {[%clk 0:04:58]} 2. Nc3 {[%clk 0:04:48.2]} 2...
d6 {[%clk 0:04:52.4]} 3. e4 {[%clk 0:04:46.8]} 3... c6 {[%clk 0:04:52.3]} 4. Be3
{[%clk 0:04:45]} 4... Qb6 {[%clk 0:04:49.9]} 5. Rb1 {[%clk 0:04:42.7]} 5... Ng4
{[%clk 0:04:48]} 6. Bc1 {[%clk 0:04:37.1]} 6... e5 {[%clk 0:04:46.1]} 7. Nf3
{[%clk 0:04:35.5]} 7... Nd7 {[%clk 0:04:42.4]} 8. h3 {[%clk 0:04:26.3]} 8...
Ngf6 {[%clk 0:04:37.3]} 9. dxe5 {[%clk 0:04:22.7]} 9... dxe5 {[%clk 0:04:34.9]}
10. Be3 {[%clk 0:04:22.3]} 10... Bc5 {[%clk 0:04:32.7]} 11. Bxc5 {[%clk
0:04:21.3]} 11... Nxc5 {[%clk 0:04:30]} 12. Nxe5 {[%clk 0:04:14.7]} 12... Ncxe4
{[%clk 0:04:26.9]} 13. Nxe4 {[%clk 0:04:11.7]} 13... Nxe4 {[%clk 0:04:26.8]} 14.
Qe2 {[%clk 0:04:10.1]} 14... Qa5+ {[%clk 0:04:24.7]} 15. c3 {[%clk 0:04:05.9]}
15... Qxe5 {[%clk 0:04:23.3]} 16. f3 {[%clk 0:04:05]} 16... Qg3+ {[%clk
0:04:15.4]} 17. Kd1 {[%clk 0:03:50.9]} 17... Be6 {[%clk 0:03:07.9]} 18. fxe4
{[%clk 0:03:46.3]} 18... Bxa2 {[%clk 0:02:52.3]} 19. Ra1 {[%clk 0:03:44.4]}
19... Bb3+ {[%clk 0:02:43.5]} 20. Kc1 {[%clk 0:03:41.5]} 20... O-O-O {[%clk
0:02:36.9]} 21. Rxa7 {[%clk 0:03:24.8]} 21... Qf4+ {[%clk 0:02:12.1]} 22. Kb1
{[%clk 0:03:22.5]} 22... Rd1+ {[%clk 0:02:11.2]} 23. Qxd1 {[%clk 0:03:21.5]}
23... Bxd1 {[%clk 0:02:11.1]} 24. Ra8+ {[%clk 0:03:19]} 24... Kc7 {[%clk
0:02:10.5]} 25. Rxh8 {[%clk 0:03:17.5]} 25... Qxe4+ {[%clk 0:02:04.2]} 0-1

[Event "Live Chess"]
[Site "Chess.com"]
[Date "2024.06.01"]
[Round "-"]
[White "WorcesterYork"]
[Black "Cruiseylee78"]
[Result "1-0"]
[WhiteElo "2477"]
[BlackElo "1697"]
[TimeControl "300"]
[EndTime "14:38:32 PDT"]
[Termination "WorcesterYork won by resignation"]

1. e4 {[%clk 0:04:58]} 1... d6 {[%clk 0:04:59.5]} 2. d4 {[%clk 0:04:57.3]} 2...
Nd7 {[%clk 0:04:58.2]} 3. Nc3 {[%clk 0:04:56.9]} 3... e5 {[%clk 0:04:57.7]} 4.
Nf3 {[%clk 0:04:56.4]} 4... h6 {[%clk 0:04:56.3]} 5. Bc4 {[%clk 0:04:54.6]} 5...
c6 {[%clk 0:04:55.8]} 6. O-O {[%clk 0:04:50.3]} 6... Be7 {[%clk 0:04:54.4]} 7.
Re1 {[%clk 0:04:45.8]} 7... Ngf6 {[%clk 0:04:53.4]} 8. a4 {[%clk 0:04:45.1]}
8... g5 {[%clk 0:04:50.6]} 9. Be3 {[%clk 0:04:41.3]} 9... Qc7 {[%clk 0:04:48.1]}
10. a5 {[%clk 0:04:40]} 10... Nf8 {[%clk 0:04:46.6]} 11. a6 {[%clk 0:04:34.8]}
11... b6 {[%clk 0:04:43.9]} 12. d5 {[%clk 0:04:33]} 12... Ng6 {[%clk 0:04:38.4]}
13. dxc6 {[%clk 0:04:31.9]} 13... Be6 {[%clk 0:04:30.9]} 14. Nd5 {[%clk
0:04:29.6]} 14... Nxd5 {[%clk 0:04:28.2]} 15. exd5 {[%clk 0:04:28.6]} 15... Bf5
{[%clk 0:04:23.7]} 16. Nd2 {[%clk 0:04:26.5]} 16... Nf4 {[%clk 0:04:20.8]} 17.
Bxf4 {[%clk 0:04:19]} 17... gxf4 {[%clk 0:04:20.7]} 18. Bd3 {[%clk 0:04:17.4]}
18... Bg6 {[%clk 0:04:06.2]} 19. Bxg6 {[%clk 0:04:14.4]} 19... fxg6 {[%clk
0:04:06.1]} 20. Qg4 {[%clk 0:04:13.7]} 20... Rg8 {[%clk 0:04:04.1]} 21. Ne4
{[%clk 0:04:11.6]} 21... h5 {[%clk 0:04:00]} 22. Qe6 {[%clk 0:04:10.5]} 22...
Rg7 {[%clk 0:03:52.9]} 23. Ra3 {[%clk 0:04:03.7]} 23... Qc8 {[%clk 0:03:48.1]}
24. Qxc8+ {[%clk 0:04:01.7]} 24... Rxc8 {[%clk 0:03:48]} 25. c4 {[%clk
0:04:00.7]} 25... g5 {[%clk 0:03:44.6]} 26. Nc3 {[%clk 0:03:59.2]} 26... g4
{[%clk 0:03:41.7]} 27. Nb5 {[%clk 0:03:58.4]} 27... Bf6 {[%clk 0:03:39.5]} 28.
Re4 {[%clk 0:03:56.1]} 28... f3 {[%clk 0:03:36.6]} 29. Nxd6+ {[%clk 0:03:54.2]}
29... Kd8 {[%clk 0:03:30.2]} 30. Nxc8 {[%clk 0:03:54.1]} 30... Kxc8 {[%clk
0:03:30.1]} 31. d6 {[%clk 0:03:53.2]} 31... fxg2 {[%clk 0:03:27.3]} 32. Kxg2
{[%clk 0:03:52.1]} 32... h4 {[%clk 0:03:18.5]} 33. Rae3 {[%clk 0:03:51]} 33...
h3+ {[%clk 0:03:17.4]} 34. Kg3 {[%clk 0:03:49.1]} 34... Rh7 {[%clk 0:03:13.2]}
35. Rxg4 {[%clk 0:03:48]} 35... Rh8 {[%clk 0:03:00.3]} 36. b4 {[%clk 0:03:47.1]}
1-0

[Event "Live Chess"]
[Site "Chess.com"]
[Date "2024.06.01"]
[Round "-"]
[White "kylet1990"]
[Black "AlexanderMatlak"]
[Result "0-1"]
[WhiteElo "734"]
[BlackElo "2433"]
[TimeControl "300"]
[EndTime "14:38:33 PDT"]
[Termination "AlexanderMatlak won by checkmate"]

1. e4 {[%clk 0:04:57.7]} 1... c5 {[%clk 0:04:58.6]} 2. Nc3 {[%clk 0:04:52.7]}
2... Nc6 {[%clk 0:04:57.3]} 3. f4 {[%clk 0:04:49.2]} 3... e6 {[%clk 0:04:54.5]}
4. Nf3 {[%clk 0:04:47.6]} 4... Nf6 {[%clk 0:04:53.8]} 5. e5 {[%clk 0:04:46.1]}
5... Nd5 {[%clk 0:04:51.2]} 6. Nxd5 {[%clk 0:04:43.1]} 6... exd5 {[%clk
0:04:51.1]} 7. d4 {[%clk 0:04:38.6]} 7... d6 {[%clk 0:04:49.4]} 8. dxc5 {[%clk
0:04:34.8]} 8... dxe5 {[%clk 0:04:47.7]} 9. Qe2 {[%clk 0:04:25.2]} 9... Bxc5
{[%clk 0:04:44.9]} 10. fxe5 {[%clk 0:04:22.3]} 10... O-O {[%clk 0:04:43.4]} 11.
Be3 {[%clk 0:04:15.3]} 11... Qb6 {[%clk 0:04:41.6]} 12. Bxc5 {[%clk 0:04:08]}
12... Qxc5 {[%clk 0:04:41.5]} 13. O-O-O {[%clk 0:04:05.5]} 13... Bf5 {[%clk
0:04:40.2]} 14. h3 {[%clk 0:03:56.8]} 14... Rac8 {[%clk 0:04:37.8]} 15. g4
{[%clk 0:03:53.8]} 15... Be4 {[%clk 0:04:36.9]} 16. Bg2 {[%clk 0:03:48.8]} 16...
Nb4 {[%clk 0:04:32.7]} 17. Kb1 {[%clk 0:03:39.8]} 17... Nxc2 {[%clk 0:04:23.7]}
18. Rc1 {[%clk 0:03:29.1]} 18... Na3+ {[%clk 0:04:21.5]} 19. Ka1 {[%clk
0:03:23.1]} 19... Qxc1+ {[%clk 0:04:20.2]} 20. Rxc1 {[%clk 0:03:21.3]} 20...
Rxc1# {[%clk 0:04:20.1]} 0-1

[Event "Live Chess"]
[Site "Chess.com"]
[Date "2024.06.01"]
[Round "-"]
[White "willc-h99"]
[Black "AndrewBak1"]
[Result "1-0"]
[WhiteElo "2622"]
[BlackElo "1869"]
[TimeControl "300"]
[EndTime "14:38:45 PDT"]
[Termination "willc-h99 won by resignation"]

1. d4 {[%clk 0:04:57.5]} 1... d5 {[%clk 0:04:58.3]} 2. Nf3 {[%clk 0:04:54.3]}
2... Nf6 {[%clk 0:04:56.1]} 3. e3 {[%clk 0:04:52.5]} 3... c5 {[%clk 0:04:55.2]}
4. c3 {[%clk 0:04:50.3]} 4... Nc6 {[%clk 0:04:54.6]} 5. dxc5 {[%clk 0:04:46.3]}
5... e5 {[%clk 0:04:52.2]} 6. b4 {[%clk 0:04:44.8]} 6... a5 {[%clk 0:04:51.4]}
7. Bb5 {[%clk 0:04:27.8]} 7... Qc7 {[%clk 0:04:46.3]} 8. Bb2 {[%clk 0:04:11.4]}
8... Bd7 {[%clk 0:04:31.5]} 9. a3 {[%clk 0:04:09.3]} 9... axb4 {[%clk
0:04:28.6]} 10. cxb4 {[%clk 0:04:06.6]} 10... b6 {[%clk 0:04:26.7]} 11. cxb6
{[%clk 0:03:59.3]} 11... Qxb6 {[%clk 0:04:25.4]} 12. Bxc6 {[%clk 0:03:54.4]} 1-0

[Event "Live Chess"]
[Site "Chess.com"]
[Date "2024.06.01"]
[Round "-"]
[White "upoe610"]
[Black "blunderabit"]
[Result "0-1"]
[WhiteElo "2218"]
[BlackElo "1803"]
[TimeControl "300"]
[EndTime "14:38:49 PDT"]
[Termination "blunderabit won by resignation"]

1. c4 {[%clk 0:04:51.5]} 1... e5 {[%clk 0:04:57.6]} 2. g3 {[%clk 0:04:50.6]}
2... Be7 {[%clk 0:04:55.2]} 3. Bg2 {[%clk 0:04:49.3]} 3... f5 {[%clk 0:04:53.9]}
4. d4 {[%clk 0:04:47.4]} 4... d6 {[%clk 0:04:52.3]} 5. dxe5 {[%clk 0:04:38.6]}
5... dxe5 {[%clk 0:04:49.8]} 6. Qxd8+ {[%clk 0:04:37.5]} 6... Bxd8 {[%clk
0:04:48.7]} 7. Nf3 {[%clk 0:04:37.2]} 7... Nd7 {[%clk 0:04:44.4]} 8. Nc3 {[%clk
0:04:33.7]} 8... c6 {[%clk 0:04:42.7]} 9. b3 {[%clk 0:04:29.4]} 9... Ba5 {[%clk
0:04:40.8]} 10. Bb2 {[%clk 0:04:27.7]} 10... Ngf6 {[%clk 0:04:34.5]} 11. O-O-O
{[%clk 0:04:26.1]} 11... O-O {[%clk 0:04:23.7]} 12. Ng5 {[%clk 0:04:23.5]} 12...
Re8 {[%clk 0:04:18.1]} 13. a3 {[%clk 0:04:16.1]} 13... Bc7 {[%clk 0:04:04.3]}
14. e4 {[%clk 0:04:12.3]} 14... h6 {[%clk 0:03:51.6]} 15. Nh3 {[%clk 0:04:10.9]}
15... fxe4 {[%clk 0:03:44.7]} 16. Nxe4 {[%clk 0:04:08.9]} 16... Nxe4 {[%clk
0:03:42.5]} 17. Bxe4 {[%clk 0:04:08.8]} 17... Nc5 {[%clk 0:03:40.6]} 18. Bg2
{[%clk 0:04:07.4]} 18... Nxb3+ {[%clk 0:03:38.1]} 19. Kc2 {[%clk 0:04:06.6]}
19... Nc5 {[%clk 0:03:33.5]} 20. Rhe1 {[%clk 0:04:03.1]} 20... Bf5+ {[%clk
0:03:28.4]} 21. Kd2 {[%clk 0:03:50.6]} 21... Ba5+ {[%clk 0:03:14.4]} 22. Ke2
{[%clk 0:03:44.3]} 22... Bxe1 {[%clk 0:03:11]} 23. Kxe1 {[%clk 0:03:44.2]} 23...
Nd3+ {[%clk 0:03:08.2]} 0-1

[Event "Live Chess"]
[Site "Chess.com"]
[Date "2024.06.01"]
[Round "-"]
[White "ACM42"]
[Black "Queensandpawns"]
[Result "0-1"]
[WhiteElo "2181"]
[BlackElo "2376"]
[TimeControl "300"]
[EndTime "14:39:08 PDT"]
[Termination "Queensandpawns won by resignation"]

1. e4 {[%clk 0:04:58.9]} 1... d5 {[%clk 0:04:58]} 2. exd5 {[%clk 0:04:54.8]}
2... c6 {[%clk 0:04:57.9]} 3. dxc6 {[%clk 0:04:53.3]} 3... Nxc6 {[%clk
0:04:57.8]} 4. Nf3 {[%clk 0:04:52.3]} 4... e5 {[%clk 0:04:57]} 5. d3 {[%clk
0:04:50.8]} 5... Bc5 {[%clk 0:04:55.6]} 6. Be3 {[%clk 0:04:43.2]} 6... Bxe3
{[%clk 0:04:54.2]} 7. fxe3 {[%clk 0:04:42.2]} 7... Nf6 {[%clk 0:04:54.1]} 8. e4
{[%clk 0:04:40.7]} 8... Ng4 {[%clk 0:04:47.9]} 9. h3 {[%clk 0:04:29.6]} 9... Ne3
{[%clk 0:04:40.4]} 10. Qd2 {[%clk 0:04:23.8]} 10... Qb6 {[%clk 0:04:39.1]} 11.
b3 {[%clk 0:04:15.8]} 11... Nb4 {[%clk 0:04:36.8]} 12. Na3 {[%clk 0:04:10.3]}
12... Qa5 {[%clk 0:04:35.4]} 13. Rc1 {[%clk 0:04:06.3]} 13... Nxf1 {[%clk
0:04:30]} 14. Rxf1 {[%clk 0:03:59.2]} 14... Qxa3 {[%clk 0:04:29.2]} 15. Nxe5
{[%clk 0:03:56.8]} 15... Be6 {[%clk 0:04:28.2]} 16. c3 {[%clk 0:03:34.7]} 16...
Nxa2 {[%clk 0:04:22.8]} 17. Ra1 {[%clk 0:03:27.8]} 17... Qxb3 {[%clk 0:04:21.7]}
18. c4 {[%clk 0:03:15.8]} 18... Nb4 {[%clk 0:04:20.2]} 19. Ke2 {[%clk
0:03:07.7]} 19... Qc2 {[%clk 0:04:14.7]} 20. Rfb1 {[%clk 0:02:55.9]} 20... Qxd2+
{[%clk 0:04:11.8]} 21. Kxd2 {[%clk 0:02:54.9]} 21... Nc6 {[%clk 0:04:10.3]} 22.
Nf3 {[%clk 0:02:40.9]} 22... O-O {[%clk 0:04:08]} 23. Rxb7 {[%clk 0:02:38.5]}
23... Rfd8 {[%clk 0:04:06.2]} 24. Ke3 {[%clk 0:02:33.9]} 24... Rab8 {[%clk
0:04:02.7]} 25. Rab1 {[%clk 0:02:31.4]} 25... a5 {[%clk 0:03:58]} 26. Nd2 {[%clk
0:02:29]} 26... Rxb7 {[%clk 0:03:55.5]} 27. Rxb7 {[%clk 0:02:27.7]} 27... Nb4
{[%clk 0:03:55.4]} 0-1

[Event "Live Chess"]
[Site "Chess.com"]
[Date "2024.06.01"]
[Round "-"]
[White "ProfPoisson"]
[Black "Pandreq"]
[Result "0-1"]
[WhiteElo "1275"]
[BlackElo "1163"]
[TimeControl "300"]
[EndTime "14:39:11 PDT"]
[Termination "Pandreq won by checkmate"]

1. e4 {[%clk 0:04:55.2]} 1... Nf6 {[%clk 0:04:58.7]} 2. Nc3 {[%clk 0:04:51.4]}
2... Nc6 {[%clk 0:04:57.4]} 3. Bc4 {[%clk 0:04:46.9]} 3... e6 {[%clk 0:04:55.3]}
4. f4 {[%clk 0:04:44.3]} 4... a6 {[%clk 0:04:53]} 5. a4 {[%clk 0:04:41.8]} 5...
Bc5 {[%clk 0:04:46.9]} 6. Nf3 {[%clk 0:04:35.3]} 6... Nd4 {[%clk 0:04:34.5]} 7.
d3 {[%clk 0:04:10.6]} 7... d5 {[%clk 0:03:54.3]} 8. exd5 {[%clk 0:04:03.6]} 8...
exd5 {[%clk 0:03:53]} 9. Ba2 {[%clk 0:03:39.4]} 9... Bg4 {[%clk 0:03:44.3]} 10.
h3 {[%clk 0:03:15.7]} 10... Bxf3 {[%clk 0:03:26.8]} 11. gxf3 {[%clk 0:03:14.2]}
11... Qe7+ {[%clk 0:03:09]} 12. Ne2 {[%clk 0:03:06.3]} 12... Nxf3+ {[%clk
0:02:57.6]} 13. Kf1 {[%clk 0:02:55.1]} 13... O-O-O {[%clk 0:02:29.8]} 14. Rb1
{[%clk 0:02:40.1]} 14... Rhe8 {[%clk 0:02:23]} 15. b4 {[%clk 0:02:30.5]} 15...
Bxb4 {[%clk 0:02:12.7]} 16. c3 {[%clk 0:02:20.6]} 16... Bc5 {[%clk 0:02:04.7]}
17. d4 {[%clk 0:02:08.1]} 17... Bb6 {[%clk 0:01:59.6]} 18. Ng3 {[%clk
0:01:52.6]} 18... Nh4 {[%clk 0:01:04.8]} 19. Kf2 {[%clk 0:01:29.7]} 19... Ng6
{[%clk 0:00:58.6]} 20. Re1 {[%clk 0:01:26.1]} 20... Qd7 {[%clk 0:00:56.2]} 21.
Ba3 {[%clk 0:01:03.6]} 21... Qxh3 {[%clk 0:00:53.5]} 22. Rxe8 {[%clk 0:00:46.2]}
22... Rxe8 {[%clk 0:00:48.7]} 23. Qf1 {[%clk 0:00:31.3]} 23... Ng4+ {[%clk
0:00:43]} 24. Kg1 {[%clk 0:00:15.3]} 24... Qh2# {[%clk 0:00:39.4]} 0-1

[Event "Live Chess"]
[Site "Chess.com"]
[Date "2024.06.01"]
[Round "-"]
[White "SavagePawn7"]
[Black "dhairyapandyauk"]
[Result "0-1"]
[WhiteElo "671"]
[BlackElo "1654"]
[TimeControl "300"]
[EndTime "14:39:25 PDT"]
[Termination "dhairyapandyauk won by resignation"]

1. e4 {[%clk 0:04:54.5]} 1... e5 {[%clk 0:04:59.3]} 2. d4 {[%clk 0:04:52.7]}
2... Nc6 {[%clk 0:04:58.9]} 3. Nf3 {[%clk 0:04:36]} 3... exd4 {[%clk 0:04:56.6]}
4. c3 {[%clk 0:04:34.6]} 4... dxc3 {[%clk 0:04:54.6]} 5. Bc4 {[%clk 0:04:32.6]}
5... d6 {[%clk 0:04:53]} 6. Bxf7+ {[%clk 0:04:18.1]} 6... Kxf7 {[%clk
0:04:32.9]} 7. Ne5+ {[%clk 0:04:09.7]} 7... Nxe5 {[%clk 0:04:25.8]} 8. Nxc3
{[%clk 0:04:06.6]} 8... Qf6 {[%clk 0:04:22.1]} 9. Nd5 {[%clk 0:04:03]} 9... Qd8
{[%clk 0:04:20.3]} 10. Qh5+ {[%clk 0:03:57.4]} 10... g6 {[%clk 0:04:17.8]} 0-1

[Event "Live Chess"]
[Site "Chess.com"]
[Date "2024.06.01"]
[Round "-"]
[White "Rusty_Bridges"]
[Black "NeilDruggan73"]
[Result "0-1"]
[WhiteElo "1513"]
[BlackElo "1755"]
[TimeControl "300"]
[EndTime "14:39:36 PDT"]
[Termination "NeilDruggan73 won on time"]

1. e4 {[%clk 0:04:55.9]} 1... d6 {[%clk 0:04:58.3]} 2. d4 {[%clk 0:04:53.3]}
2... Nf6 {[%clk 0:04:57.2]} 3. Nc3 {[%clk 0:04:50.2]} 3... g6 {[%clk 0:04:56.5]}
4. Nf3 {[%clk 0:04:45.8]} 4... Bg7 {[%clk 0:04:56]} 5. Bc4 {[%clk 0:04:44.6]}
5... Nxe4 {[%clk 0:04:53.9]} 6. Nxe4 {[%clk 0:04:34]} 6... d5 {[%clk 0:04:52.5]}
7. Bb5+ {[%clk 0:04:14.6]} 7... c6 {[%clk 0:04:50.2]} 8. Nc3 {[%clk 0:04:11.1]}
8... cxb5 {[%clk 0:04:47.3]} 9. Nxb5 {[%clk 0:04:08.5]} 9... Qb6 {[%clk
0:04:44.3]} 10. a4 {[%clk 0:03:59.8]} 10... O-O {[%clk 0:04:36.5]} 11. Be3
{[%clk 0:03:49.7]} 11... a6 {[%clk 0:04:31.7]} 12. Nc3 {[%clk 0:03:47.4]} 12...
Qxb2 {[%clk 0:04:29.7]} 13. Nxd5 {[%clk 0:03:36.5]} 13... Nc6 {[%clk 0:04:11]}
14. O-O {[%clk 0:03:23.1]} 14... Bg4 {[%clk 0:04:09.1]} 15. Rb1 {[%clk
0:03:10.5]} 15... Bxf3 {[%clk 0:03:57.5]} 16. Qxf3 {[%clk 0:03:07.9]} 16... Qxc2
{[%clk 0:03:55.1]} 17. Rxb7 {[%clk 0:02:59.4]} 17... Nxd4 {[%clk 0:03:52.8]} 18.
Bxd4 {[%clk 0:02:56.6]} 18... Bxd4 {[%clk 0:03:48.3]} 19. Rxe7 {[%clk
0:02:35.9]} 19... Bg7 {[%clk 0:03:21.1]} 20. a5 {[%clk 0:02:27.3]} 20... Qc5
{[%clk 0:03:15.5]} 21. Rfe1 {[%clk 0:01:58.8]} 21... Qxa5 {[%clk 0:03:11]} 22.
h4 {[%clk 0:00:58.2]} 22... h5 {[%clk 0:03:06.1]} 23. Rb1 {[%clk 0:00:40.5]}
23... Rad8 {[%clk 0:02:34.8]} 24. Nf6+ {[%clk 0:00:33.3]} 24... Bxf6 {[%clk
0:02:18.1]} 25. Qxf6 {[%clk 0:00:33.2]} 25... Qa2 {[%clk 0:01:58.8]} 26. Rbb7
{[%clk 0:00:31.2]} 26... Qb1+ {[%clk 0:01:13.7]} 27. Kh2 {[%clk 0:00:29]} 27...
Rd1 {[%clk 0:01:03.4]} 28. Rxb1 {[%clk 0:00:26.7]} 28... Rxb1 {[%clk 0:00:58.9]}
29. Qxa6 {[%clk 0:00:26]} 29... Rbb8 {[%clk 0:00:55.9]} 30. Qe2 {[%clk
0:00:24.6]} 30... Kg7 {[%clk 0:00:55.2]} 31. f3 {[%clk 0:00:22.6]} 31... Rb4
{[%clk 0:00:52.2]} 32. Qe5+ {[%clk 0:00:20.9]} 32... Kg8 {[%clk 0:00:49.8]} 33.
Qf6 {[%clk 0:00:19.7]} 33... Rbb8 {[%clk 0:00:43.2]} 34. Kh3 {[%clk 0:00:18.9]}
34... Rbc8 {[%clk 0:00:41.5]} 35. g4 {[%clk 0:00:17.6]} 35... hxg4+ {[%clk
0:00:37.8]} 36. Kxg4 {[%clk 0:00:16.8]} 36... Rcd8 {[%clk 0:00:36.8]} 37. f4
{[%clk 0:00:15.7]} 37... Rd1 {[%clk 0:00:34.5]} 38. h5 {[%clk 0:00:13.3]} 38...
Rg1+ {[%clk 0:00:33.6]} 39. Kf3 {[%clk 0:00:12.1]} 39... gxh5 {[%clk 0:00:28.4]}
40. Qh6 {[%clk 0:00:09]} 40... Rg6 {[%clk 0:00:25.1]} 41. Qxh5 {[%clk
0:00:07.9]} 41... Kg7 {[%clk 0:00:24.1]} 42. Re2 {[%clk 0:00:06.2]} 42... Rh8
{[%clk 0:00:23]} 43. Qe5+ {[%clk 0:00:03.9]} 43... Kf8 {[%clk 0:00:20.5]} 44.
Rd2 {[%clk 0:00:02.2]} 44... Rh3+ {[%clk 0:00:19]} 45. Ke4 {[%clk 0:00:01.1]}
45... Re6 {[%clk 0:00:14.8]} 0-1

[Event "Live Chess"]
[Site "Chess.com"]
[Date "2024.06.01"]
[Round "-"]
[White "Pablo_dmp"]
[Black "JanMur7"]
[Result "0-1"]
[WhiteElo "2008"]
[BlackElo "2294"]
[TimeControl "300"]
[EndTime "14:39:52 PDT"]
[Termination "JanMur7 won by resignation"]

1. e4 {[%clk 0:04:58.7]} 1... e5 {[%clk 0:04:58.3]} 2. Nf3 {[%clk 0:04:57.8]}
2... Nc6 {[%clk 0:04:57.8]} 3. Bc4 {[%clk 0:04:57]} 3... Bc5 {[%clk 0:04:56.3]}
4. c3 {[%clk 0:04:55.4]} 4... Nf6 {[%clk 0:04:55.9]} 5. d4 {[%clk 0:04:54.7]}
5... exd4 {[%clk 0:04:55.8]} 6. e5 {[%clk 0:04:54]} 6... d5 {[%clk 0:04:54.3]}
7. Bb5 {[%clk 0:04:53.4]} 7... Ne4 {[%clk 0:04:51.9]} 8. cxd4 {[%clk 0:04:52.6]}
8... Bb4+ {[%clk 0:04:51.4]} 9. Nbd2 {[%clk 0:04:41.6]} 9... O-O {[%clk
0:04:49]} 10. O-O {[%clk 0:04:40]} 10... Bg4 {[%clk 0:04:43.7]} 11. h3 {[%clk
0:04:36.3]} 11... Nxd2 {[%clk 0:04:40.5]} 12. Bxd2 {[%clk 0:04:33.7]} 12... Bxf3
{[%clk 0:04:38.9]} 13. gxf3 {[%clk 0:04:28.6]} 13... Bxd2 {[%clk 0:04:38.5]} 14.
Qxd2 {[%clk 0:04:27]} 14... Qh4 {[%clk 0:04:38.2]} 15. Kh2 {[%clk 0:04:23.9]}
15... Qxd4 {[%clk 0:04:23.6]} 16. Bd3 {[%clk 0:04:13]} 16... Qxe5+ {[%clk
0:04:21.2]} 17. f4 {[%clk 0:04:11.1]} 17... Qf6 {[%clk 0:04:20.2]} 18. Rg1
{[%clk 0:04:09.2]} 18... g6 {[%clk 0:04:17.9]} 19. f5 {[%clk 0:04:04.2]} 19...
Ne5 {[%clk 0:04:15.2]} 20. Bc2 {[%clk 0:03:59.7]} 20... Nf3+ {[%clk 0:04:13]}
0-1

[Event "Live Chess"]
[Site "Chess.com"]
[Date "2024.06.01"]
[Round "-"]
[White "gobbles19"]
[Black "GEMdzq"]
[Result "1/2-1/2"]
[WhiteElo "2273"]
[BlackElo "2315"]
[TimeControl "300"]
[EndTime "14:39:54 PDT"]
[Termination "Game drawn by repetition"]

1. Nf3 {[%clk 0:04:53.9]} 1... Nf6 {[%clk 0:04:55.6]} 2. c4 {[%clk 0:04:52]}
2... c5 {[%clk 0:04:51.1]} 3. g3 {[%clk 0:04:49]} 3... g6 {[%clk 0:04:49.6]} 4.
Bg2 {[%clk 0:04:48.5]} 4... Bg7 {[%clk 0:04:49.3]} 5. Nc3 {[%clk 0:04:47.7]}
5... O-O {[%clk 0:04:48.7]} 6. d3 {[%clk 0:04:47.2]} 6... Nc6 {[%clk 0:04:47.8]}
7. O-O {[%clk 0:04:46.1]} 7... d5 {[%clk 0:04:47]} 8. cxd5 {[%clk 0:04:41.5]}
8... Nxd5 {[%clk 0:04:46.9]} 9. Bd2 {[%clk 0:04:40.7]} 9... Be6 {[%clk
0:04:42.8]} 10. Rc1 {[%clk 0:04:37.7]} 10... b6 {[%clk 0:04:36]} 11. a3 {[%clk
0:04:29.8]} 11... Rc8 {[%clk 0:04:33.4]} 12. Ng5 {[%clk 0:04:27.2]} 12... Nxc3
{[%clk 0:04:28.3]} 13. Bxc3 {[%clk 0:04:25.4]} 13... Bd5 {[%clk 0:04:27.4]} 14.
e4 {[%clk 0:04:20.6]} 14... Be6 {[%clk 0:04:23.5]} 15. Nxe6 {[%clk 0:04:19.1]}
15... fxe6 {[%clk 0:04:22.8]} 16. Bh3 {[%clk 0:04:14.9]} 16... Qd7 {[%clk
0:03:55.7]} 17. Qb3 {[%clk 0:04:09]} 17... Nd8 {[%clk 0:03:53.4]} 18. Rcd1
{[%clk 0:03:48.7]} 18... Rc6 {[%clk 0:03:31.1]} 19. Bxg7 {[%clk 0:03:04.5]}
19... Kxg7 {[%clk 0:03:31]} 20. Rfe1 {[%clk 0:02:57.7]} 20... Qd4 {[%clk
0:03:25.4]} 21. Qc3 {[%clk 0:02:49.9]} 21... e5 {[%clk 0:03:15.8]} 22. Qxd4
{[%clk 0:02:34.2]} 22... cxd4 {[%clk 0:03:09.9]} 23. Rc1 {[%clk 0:02:33.4]}
23... Rff6 {[%clk 0:03:08.4]} 24. Bd7 {[%clk 0:02:31.7]} 24... Rc5 {[%clk
0:02:56.8]} 25. b4 {[%clk 0:02:29.2]} 25... Rxc1 {[%clk 0:02:13.8]} 26. Rxc1
{[%clk 0:02:29.1]} 26... Rd6 {[%clk 0:02:12.5]} 27. Bb5 {[%clk 0:02:18.6]} 27...
Ne6 {[%clk 0:01:58.6]} 28. Kg2 {[%clk 0:02:14.7]} 28... Kf6 {[%clk 0:01:57]} 29.
h4 {[%clk 0:02:13.2]} 29... h5 {[%clk 0:01:55.5]} 30. Rc8 {[%clk 0:02:11.2]}
30... Rd8 {[%clk 0:01:53.1]} 31. Rc2 {[%clk 0:02:03.6]} 31... g5 {[%clk
0:01:38.1]} 32. hxg5+ {[%clk 0:01:58.8]} 32... Kxg5 {[%clk 0:01:38]} 33. Rc6
{[%clk 0:01:49.3]} 33... Rd6 {[%clk 0:01:32.6]} 34. Rc8 {[%clk 0:01:47.7]} 34...
Rd8 {[%clk 0:01:31.4]} 35. Rc6 {[%clk 0:01:45.7]} 35... Rd6 {[%clk 0:01:30.1]}
36. Rc8 {[%clk 0:01:44.8]} 36... Rd8 {[%clk 0:01:29.2]} 37. Rc6 {[%clk 0:01:44]}
1/2-1/2